fUSD/lending_fUSD_20260217
["ID","MTS","AMOUNT","RATE_DAILY","PERIOD"]
[405822496,1771339847942,-250.0,0.00016684,2]
[405822497,1771339847951,-250.0,0.00016684,2]
[405822498,1771339847962,-250.0,0.00016684,2]
[405822499,1771339847972,-250.0,0.00016684,2]
[405822500,1771339847982,-250.0,0.00016684,2]
[405822501,1771339847991,-250.0,0.00016684,2]
[405822502,1771339848000,-250.0,0.00016684,2]
[405822503,1771339848009,-250.0,0.00016684,2]
[405822504,1771339848019,-250.0,0.00016684,2]
[405822505,1771339848028,-250.0,0.00016684,2]
[405822506,1771339848038,-299.40346672,0.00016684,2]
[405822507,1771339848047,-250.0,0.00016684,2]
[405822508,1771339848061,-302.70619241,0.00016684,2]
[405822509,1771339848071,-209.40437684,0.00016684,2]
[405822510,1771339848081,-250.0,0.00016684,2]
[405822511,1771339848090,-250.0,0.00016684,2]
[405822512,1771339848100,-250.0,0.00016684,2]
[405822513,1771339848109,-250.0,0.00016684,2]
[405822514,1771339848118,-250.0,0.00016684,2]
[405822515,1771339848128,-250.0,0.00016684,2]
[405822516,1771339848138,-250.0,0.00016684,2]
[405822517,1771339848147,-250.0,0.00016684,2]
[405822518,1771339848157,-250.0,0.00016684,2]
[405822519,1771339848167,-250.0,0.00016684,2]
[405822520,1771339848177,-250.0,0.00016684,2]
[405822521,1771339848187,-250.0,0.00016684,2]
[405822522,1771339848196,-250.0,0.00016684,2]
[405822523,1771339848206,-250.0,0.00016684,2]
[405822524,1771339848216,-250.0,0.00016684,2]
[405822525,1771339848225,-250.0,0.00016684,2]
[405822526,1771339848234,-250.0,0.00016684,2]
[405822527,1771339848243,-250.0,0.00016684,2]
[405822528,1771339848253,-250.0,0.00016684,2]
[405822529,1771339848262,-693.3919763,0.00016684,2]
[405822530,1771339848272,-250.0,0.00016684,2]
[405822531,1771339848282,-250.0,0.00016684,2]
[405822532,1771339848291,-250.0,0.00016684,2]
[405822533,1771339848304,-159.42,0.00016712,2]
[405822534,1771339848313,-151.0,0.00016739,2]
[405822535,1771339848323,-719.04747942,0.00016739,2]
[405822536,1771339848333,-500.0,0.00016776,2]
[405822537,1771339848343,-500.0,0.00016776,2]
[405822538,1771339848352,-500.0,0.00016776,2]
[405822539,1771339848361,-500.0,0.00016776,2]
[405822540,1771339848371,-500.0,0.00016776,2]
[405822541,1771339848380,-624.0,0.00016776,2]
[405822542,1771339848389,-151.0,0.00016794,2]
[405822543,1771339848399,-745.65223616,0.00016794,2]
[405822544,1771339848408,-420.0,0.00016809,2]
[405822545,1771339848417,-151.0,0.00016849,2]
[405822546,1771339848426,-773.2413689,0.00016849,2]
[405822547,1771339848436,-150.0,0.00016875,2]
[405822548,1771339848446,-151.0,0.00016904,2]
[405822549,1771339848457,-801.85129955,0.00016904,2]
[405822550,1771339848467,-371.44518201,0.00016925,2]
[405822551,1771339848477,-26010.34672843,0.00016936,2]
[405822552,1771339848486,-151.0,0.00016959,2]
[405822553,1771339848496,-831.51979763,0.00016959,2]
[405822554,1771339848507,-173.0767049,0.0001699,2]
[405822555,1771339848516,-208.8,0.00016997,2]
[405822556,1771339848526,-160.0,0.00017,7]
[405822557,1771339848536,-722480.46228801,0.00017,2]
[405822558,1771339848545,-300.0,0.00017,2]
[405822559,1771339848558,-151.0,0.00017014,2]
[405822560,1771339848568,-862.28603014,0.00017014,2]
[405822561,1771339848577,-180.0,0.00017064,2]
[405822562,1771339848587,-151.0,0.00017069,2]
[405822563,1771339848597,-894.19061326,0.00017069,2]
[405822564,1771339848606,-157.37,0.00017084,2]
[405822565,1771339848616,-150.0,0.000171,2]
[405822566,1771339848626,-208.8,0.00017107,2]
[405822567,1771339848635,-151.0,0.00017124,2]
[405822568,1771339848645,-927.27566595,0.00017124,2]
[405822569,1771339848655,-500.0,0.00017126,2]
[405822570,1771339848664,-500.0,0.00017126,2]
[405822571,1771339848674,-500.0,0.00017126,2]
[405822572,1771339848683,-374.0,0.00017126,2]
[405822573,1771339848693,-151.0,0.00017179,2]
[405822574,1771339848702,-961.58486559,0.00017179,2]
[405822575,1771339848712,-208.79732778,0.00017216,2]
[405822576,1771339848722,-527.32864652,0.00017232,2]
[405822577,1771339848732,-200.0,0.00017232,2]
[405822578,1771339848743,-217.15233878,0.00017232,2]
[405822579,1771339848752,-771.01748645,0.00017232,2]
[405822580,1771339848762,-287.61899177,0.00017232,2]
[405822581,1771339848772,-181.08010149,0.00017232,2]
[405822582,1771339848782,-217.15233878,0.00017232,2]
[405822583,1771339848792,-151.0,0.00017234,2]
[405822584,1771339848804,-997.16350561,0.00017234,2]
[405822585,1771339848814,-151.0,0.00017289,2]
[405822586,1771339848823,-150.0,0.00017325,2]
[405822587,1771339848833,-1088.37215301,0.00017326,2]
[405822588,1771339848844,-473.31058807,0.00017326,2]
[405822589,1771339848853,-151.0,0.00017344,2]
[405822590,1771339848863,-217.0,0.00017372,3]
[405822591,1771339848874,-151.0,0.00017399,2]
[405822592,1771339848883,-2555.4951848,0.000174,5]
[405822593,1771339848892,-267.05598539,0.00017454,2]
[405822594,1771339848902,-187.0,0.0001747,2]
[405822595,1771339848912,-500.0,0.00017476,2]
[405822596,1771339848922,-500.0,0.00017476,2]
[405822597,1771339848931,-249.0,0.00017476,2]
[405822598,1771339848940,-187.0,0.00017493,2]
[405822599,1771339848950,-150.0,0.0001755,2]
[405822600,1771339848959,-187.0,0.00017573,2]
[405822601,1771339848969,-258.29145491,0.00017691,2]
[405822602,1771339848978,-187.0,0.00017692,2]
[405822603,1771339848987,-328.87800463,0.000177,7]
[405822604,1771339848997,-784.32813885,0.000177,2]
[405822605,1771339849006,-403.0,0.000177,5]
[405822606,1771339849015,-187.0,0.00017711,2]
[405822607,1771339849025,-9999.99,0.00017728,2]
[405822608,1771339849034,-6699.49,0.00017728,2]
[405822609,1771339849043,-29999.99,0.00017728,2]
[405822610,1771339849066,-1000.0,0.00017741,2]
[405822611,1771339849295,-1022.99162526,0.00017758,2]
[405822612,1771339849305,-350.0,0.00017764,2]
[405822613,1771339849316,-150.0,0.00017775,2]
[405822614,1771339849325,-225.18697532,0.0001778,2]
[405822615,1771339849334,-495.13183978,0.0001778,2]
[405822616,1771339849344,-298.26089446,0.0001778,2]
[405822617,1771339849354,-177.72188919,0.0001778,2]
[405822618,1771339849364,-166.95668844,0.0001778,2]
[405822619,1771339849373,-444.64,0.00017808,2]
[405822620,1771339849383,-800.0,0.00017808,2]
[405822621,1771339849393,-250.0,0.00017808,20]
[405822622,1771339849402,-250.0,0.00017808,20]
[405822623,1771339849411,-250.0,0.00017808,20]
[405822624,1771339849420,-250.0,0.00017808,20]
[405822625,1771339849430,-250.0,0.00017808,20]
[405822626,1771339849440,-250.0,0.00017808,20]
[405822627,1771339849449,-250.0,0.00017808,20]
[405822628,1771339849459,-250.0,0.00017808,20]
[405822629,1771339849468,-250.0,0.00017808,20]
[405822630,1771339849478,-250.0,0.00017808,20]
[405822631,1771339849487,-250.0,0.00017808,20]
[405822632,1771339849496,-250.0,0.00017808,20]
[405822633,1771339849505,-250.0,0.00017808,20]
[405822634,1771339849515,-250.0,0.00017808,20]
[405822635,1771339849524,-250.0,0.00017808,20]
[405822636,1771339849534,-250.0,0.00017808,20]
[405822637,1771339849543,-250.0,0.00017808,20]
[405822638,1771339849559,-250.0,0.00017808,20]
[405822639,1771339849568,-250.0,0.00017808,20]
[405822640,1771339849578,-250.0,0.00017808,20]
[405822641,1771339849588,-250.0,0.00017808,20]
[405822642,1771339849597,-250.0,0.00017808,20]
[405822643,1771339849607,-250.0,0.00017808,20]
[405822644,1771339849617,-250.0,0.00017808,20]
[405822645,1771339849627,-250.0,0.00017808,20]
[405822646,1771339849637,-250.0,0.00017808,20]
[405822647,1771339849647,-250.0,0.00017808,20]
[405822648,1771339849657,-250.0,0.00017808,20]
[405822649,1771339849667,-250.0,0.00017808,20]
[405822650,1771339849677,-250.0,0.00017808,20]
[405822651,1771339849688,-250.0,0.00017808,20]
[405822652,1771339849698,-250.0,0.00017808,20]
[405822653,1771339849707,-250.0,0.00017808,20]
[405822654,1771339849717,-250.0,0.00017808,20]
[405822655,1771339849726,-250.0,0.00017808,20]
[405822656,1771339849736,-250.0,0.00017808,20]
[405822657,1771339849745,-250.0,0.00017808,20]
[405822658,1771339849755,-250.0,0.00017808,20]
[405822659,1771339849765,-250.0,0.00017808,20]
[405822660,1771339849774,-250.0,0.00017808,20]
[405822661,1771339849784,-250.0,0.00017808,20]
[405822662,1771339849793,-250.0,0.00017808,20]
[405822663,1771339849806,-250.0,0.00017808,20]
[405822664,1771339849816,-250.0,0.00017808,20]
[405822665,1771339849827,-250.0,0.00017808,20]
[405822666,1771339849838,-250.0,0.00017808,20]
[405822667,1771339849848,-250.0,0.00017808,20]
[405822668,1771339849858,-250.0,0.00017808,20]
[405822669,1771339849869,-250.0,0.00017808,20]
[405822670,1771339849884,-250.0,0.00017808,20]
[405822671,1771339849894,-250.0,0.00017808,20]
[405822672,1771339849904,-250.0,0.00017808,20]
[405822673,1771339849915,-250.0,0.00017808,20]
[405822674,1771339849924,-250.0,0.00017808,20]
[405822675,1771339849934,-250.0,0.00017808,20]
[405822676,1771339849943,-250.0,0.00017808,20]
[405822677,1771339849953,-250.0,0.00017808,20]
[405822678,1771339849962,-250.0,0.00017808,20]
[405822679,1771339849971,-1705.54079402,0.0001782,2]
[405822680,1771339850547,-294.45920598,0.0001782,2]
[405822681,1771339850561,-9.69061813,0.0001782,2]
[405822682,1771339850573,-680.47,0.0001782,2]
[405822683,1771339850590,-1309.83938187,0.0001782,2]
[405822684,1771339850601,-2000.0,0.0001782,2]
[405822685,1771339850612,-2000.0,0.0001782,2]
[405822686,1771339850622,-2000.0,0.0001782,2]
[405822687,1771339850632,-2000.0,0.0001782,2]
[405822688,1771339850643,-500.0,0.00017855,2]
[405822689,1771339850654,-200.0,0.00017855,2]
[405822690,1771339850664,-500.0,0.00017856,2]
[405822691,1771339850675,-500.0,0.00017856,2]
[405822692,1771339850685,-500.0,0.00017856,2]
[405822693,1771339850696,-200.0,0.00017856,2]
[405822694,1771339850706,-200.0,0.00017856,2]
[405822695,1771339850716,-1004.12697823,0.0001786,2]
[405822696,1771339850726,-1000.0,0.00017883,2]
[405822697,1771339850736,-150.0,0.00017889,2]
[405822698,1771339850746,-350.0,0.00017895,2]
[405822699,1771339850756,-500.0,0.00017899,2]
[405822700,1771339850766,-669.78,0.00017899,2]
[405822701,1771339850776,-669.19,0.00017899,2]
[405822702,1771339850786,-500.0,0.00017899,2]
[405822703,1771339850797,-5008.1800114,0.000179,3]
[405822704,1771339850813,-890.26,0.000179,2]
[405822705,1771339850823,-500.0,0.000179,2]
[405822706,1771339850834,-500.0,0.000179,2]
[405822707,1771339850845,-875.94052203,0.000179,2]
[405822708,1771339850856,-6700.00257211,0.000179,2]
[405822709,1771339850866,-336.2005368,0.000179,2]
[405822710,1771339850875,-500.0,0.00017918,2]
[405822711,1771339850885,-500.0,0.00017918,2]
[405822712,1771339850895,-500.0,0.00017918,2]
[405822713,1771339850904,-500.0,0.00017918,2]
[405822714,1771339850914,-500.0,0.00017918,2]
[405822715,1771339850925,-500.0,0.00017918,2]
[405822716,1771339850934,-500.0,0.00017918,2]
[405822717,1771339850943,-432.0,0.00017918,2]
[405822718,1771339850953,-500.0,0.00017973,2]
[405822719,1771339850962,-500.0,0.00017973,2]
[405822720,1771339850972,-500.0,0.00017973,2]
[405822721,1771339850981,-500.99084636,0.00017973,2]
[405822722,1771339850991,-500.0,0.00017973,2]
[405822723,1771339851001,-501.87877687,0.00017973,2]
[405822724,1771339851010,-500.0,0.00017973,2]
[405822725,1771339851020,-616.27940406,0.00017973,2]
[405822726,1771339851030,-576.17743239,0.00017973,2]
[405822727,1771339851040,-500.0,0.00017973,2]
[405822728,1771339851054,-500.0,0.00017973,2]
[405822729,1771339851063,-500.92273853,0.00017973,2]
[405822730,1771339851073,-500.0,0.00017973,2]
[405822731,1771339851083,-500.0,0.00017973,2]
[405822732,1771339851093,-501.19336198,0.00017973,2]
[405822733,1771339851103,-501.16561669,0.00017973,2]
[405822734,1771339851112,-502.93062154,0.00017973,2]
[405822735,1771339851123,-500.0,0.00017973,2]
[405822736,1771339851133,-160.55826743,0.00017973,2]
[405822737,1771339851143,-316.58859714,0.00017973,2]
[405822738,1771339851153,-500.0,0.00017973,2]
[405822739,1771339851163,-507.8750377,0.00017973,2]
[405822740,1771339851173,-500.0,0.00017973,2]
[405822741,1771339851183,-501.62990348,0.00017973,2]
[405822742,1771339851192,-500.37289489,0.00017973,2]
[405822743,1771339851202,-200.47317568,0.00017973,2]
[405822744,1771339851212,-500.78926699,0.00017973,2]
[405822745,1771339851222,-501.06776568,0.00017973,2]
[405822746,1771339851232,-502.0189328,0.00017973,2]
[405822747,1771339851242,-500.49232584,0.00017973,2]
[405822748,1771339851251,-502.28996963,0.00017973,2]
[405822749,1771339851261,-501.30003564,0.00017973,2]
[405822750,1771339851271,-500.0,0.00017973,2]
[405822751,1771339851281,-501.89281575,0.00017973,2]
[405822752,1771339851291,-501.78719611,0.00017973,2]
[405822753,1771339851305,-160.55921798,0.00017973,2]
[405822754,1771339851314,-501.15252026,0.00017973,2]
[405822755,1771339851323,-501.05628867,0.00017973,2]
[405822756,1771339851333,-503.33191464,0.00017973,2]
[405822757,1771339851343,-500.0,0.00017973,2]
[405822758,1771339851353,-504.49684223,0.00017973,2]
[405822759,1771339851363,-500.0,0.00017973,2]
[405822760,1771339851373,-502.37992604,0.00017973,2]
[405822761,1771339851382,-500.0,0.00017973,2]
[405822762,1771339851392,-500.0,0.00017973,2]
[405822763,1771339851402,-163.14629325,0.00017973,2]
[405822764,1771339851412,-160.57193954,0.00017973,2]
[405822765,1771339851422,-588.14229004,0.00017973,2]
[405822766,1771339851431,-168.45138887,0.00017973,2]
[405822767,1771339851441,-500.0,0.00017973,2]
[405822768,1771339851451,-501.59728131,0.00017973,2]
[405822769,1771339851460,-504.66274009,0.00017973,2]
[405822770,1771339851470,-500.60659592,0.00017973,2]
[405822771,1771339851480,-500.0,0.00017973,2]
[405822772,1771339851489,-500.67013055,0.00017973,2]
[405822773,1771339851499,-310.16973746,0.00017973,2]
[405822774,1771339851509,-579.41896786,0.00017973,2]
[405822775,1771339851518,-550.98049433,0.00017975,7]
[405822776,1771339851529,-1138.2869896,0.00017982,2]
[405822777,1771339851809,-3264.12345554,0.00017992,2]
[405822778,1771339851822,-943.03380852,0.00017992,2]
[405822779,1771339851838,-1260.0,0.00017992,2]
[405822780,1771339851849,-956.485885,0.00017992,2]
[405822781,1771339851861,-1127.72050475,0.00017992,2]
[405822782,1771339852091,-843.0,8.493e-05,2]
[405822783,1771339852100,-843.0,8.548e-05,2]
[405822784,1771339852109,-843.0,8.603e-05,2]
[405822785,1771339852119,-843.0,8.657e-05,2]
[405822786,1771339852128,-843.0,8.712e-05,2]
[405822787,1771339852138,-89.98121039,8.767e-05,2]
[405822788,1771339852149,-405.36,8.767e-05,2]
[405822789,1771339852160,-347.65878961,8.767e-05,2]
[405822790,1771339852169,-644.44659114,8.822e-05,2]
[405822791,1771339852192,-198.55340886,8.822e-05,2]
[405822792,1771339852201,-214.34557334,0.00010779,2]
[405822793,1771339852233,-285.65442666,0.00010779,2]
[405822794,1771339852243,-1000.0,0.00011327,2]
[405822795,1771339852252,-303.19730478,0.00011875,2]
[405822796,1771339852262,-99560.53559879,0.00017992,2]
[405822797,1771339852299,-394.67472011,8.877e-05,2]
[405822798,1771339852545,-448.32527989,8.877e-05,2]
[405822799,1771339852557,-843.0,8.931e-05,2]
[405822800,1771339852567,-383.67472011,8.986e-05,2]
[405822801,1771339852579,-459.32527989,8.986e-05,2]
[405822802,1771339852588,-219.44014792,9.041e-05,2]
[405822803,1771339852611,-623.55985208,9.041e-05,2]
[405822804,1771339852620,-843.0,9.096e-05,2]
[405822805,1771339852630,-86.10210833,9.151e-05,2]
[405822806,1771339852656,-756.89789167,9.151e-05,2]
[405822807,1771339852666,-152.85835457,0.00016,2]
[405822808,1771339852675,-103.49307826,0.00017992,2]
[405822809,1771339852858,-261.18805999,0.00017992,2]
[405822810,1771339852870,-343.31435945,0.00017992,2]
[405822811,1771339852893,-9720.69975176,0.00017992,2]
[405822812,1771339852905,-13466.48564617,0.00017992,2]
[405822813,1771339852914,-20022.81431383,0.00017992,4]
[405822814,1771339852942,-553.35540921,0.00017992,4]
[405822815,1771339852953,-759.88249176,0.00017992,4]
[405822816,1771339852965,-70787.25137796,0.00017992,4]
[405822817,1771339852974,-500.0,0.00017998,2]
[405822818,1771339852984,-669.78,0.00017998,2]
[405822819,1771339852994,-669.19,0.00017998,2]
[405822820,1771339853003,-500.0,0.00017998,2]
[405822821,1771339853013,-1265.56589159,0.00017999,2]
[405822822,1771339853022,-155.0,0.00017999,2]
[405822823,1771339853032,-500.0,0.00017999,2]
[405822824,1771339853042,-391.46615766,0.00017999,2]
[405822825,1771339853051,-669.78,0.00017999,2]
[405822826,1771339853065,-669.78,0.00017999,2]
[405822827,1771339853075,-669.78,0.00017999,2]
[405822828,1771339853084,-669.78,0.00017999,2]
[405822829,1771339853094,-669.78,0.00017999,2]
[405822830,1771339853104,-669.78,0.00017999,2]
[405822831,1771339853113,-669.78,0.00017999,2]
[405822832,1771339853126,-669.78,0.00017999,2]
[405822833,1771339853143,-669.78,0.00017999,2]
[405822834,1771339853153,-669.78,0.00017999,2]
[405822835,1771339853163,-669.78,0.00017999,2]
[405822836,1771339853174,-669.78,0.00017999,2]
[405822837,1771339853184,-669.78,0.00017999,2]
[405822838,1771339853194,-669.78,0.00017999,2]
[405822839,1771339853205,-669.85168694,0.00017999,2]
[405822840,1771339853215,-669.19,0.00017999,2]
[405822841,1771339853226,-669.19,0.00017999,2]
[405822842,1771339853236,-669.19,0.00017999,2]
[405822843,1771339853246,-669.19,0.00017999,2]
[405822844,1771339853256,-669.19,0.00017999,2]
[405822845,1771339853266,-669.19,0.00017999,2]
[405822846,1771339853275,-669.19,0.00017999,2]
[405822847,1771339853285,-669.19,0.00017999,2]
[405822848,1771339853295,-669.19,0.00017999,2]
[405822849,1771339853305,-669.19,0.00017999,2]
[405822850,1771339853315,-669.19,0.00017999,2]
[405822851,1771339853325,-669.19,0.00017999,2]
[405822852,1771339853334,-669.19,0.00017999,2]
[405822853,1771339853344,-669.19,0.00017999,2]
[405822854,1771339853353,-669.29,0.00017999,2]
[405822855,1771339853362,-500.0,0.00017999,2]
[405822856,1771339853373,-500.0,0.00017999,2]
[405822857,1771339853383,-465.55674509,0.00017999,2]
[405822858,1771339853392,-300.0,0.00017999,2]
[405822859,1771339853402,-402.56825335,0.00017999,2]
[405822860,1771339853411,-300.0,0.00017999,2]
[405822861,1771339853420,-666.0,0.00017999,2]
[405822862,1771339853430,-240.96773432,0.00017999,2]
[405822863,1771339853439,-300.0,0.00017999,2]
[405822864,1771339853449,-666.0,0.00017999,2]
[405822865,1771339853458,-300.0,0.00017999,2]
[405822866,1771339853468,-300.0,0.00017999,2]
[405822867,1771339853478,-300.0,0.00017999,2]
[405822868,1771339853487,-666.0,0.00017999,2]
[405822869,1771339853497,-150.0,0.00017999,2]
[405822870,1771339853508,-150.0,0.00017999,2]
[405822871,1771339853517,-150.0,0.00017999,2]
[405822872,1771339853527,-150.0,0.00017999,2]
[405822873,1771339853537,-150.0,0.00017999,2]
[405822874,1771339853546,-150.0,0.00017999,2]
[405822875,1771339853557,-150.0,0.00017999,2]
[405822876,1771339853567,-150.0,0.00017999,2]
[405822877,1771339853576,-163.5753384,0.00017999,2]
[405822878,1771339853586,-28610.11146738,0.00017999,2]
[405822879,1771339853596,-262.13935403,0.00018,2]
[405822880,1771339853606,-25613.71990043,0.00018,2]
[405822881,1771339853790,-843.0,9.205e-05,2]
[405822882,1771339853813,-843.0,9.26e-05,2]
[405822883,1771339853823,-265.0,0.00018,2]
[405822884,1771339853858,-785.04,0.00018,2]
[405822885,1771339854223,-3324.0,0.00018,2]
[405822886,1771339911301,10000.01,6.83e-05,2]
[405822887,1771339911326,10000.01,6.83e-05,2]
[405822888,1771339911353,10000.01,6.83e-05,2]
[405822889,1771339911377,10000.01,6.83e-05,2]
[405822890,1771339911402,10000.01,6.83e-05,2]
[405822891,1771339911426,10000.01,6.83e-05,2]
[405822892,1771339911451,10000.01,6.83e-05,2]
[405822893,1771339911476,10000.01,6.83e-05,2]
[405822894,1771339911501,5000.01,6.83e-05,2]
[405822895,1771339911524,5000.01,6.83e-05,2]
[405822896,1771339911549,5000.01,6.83e-05,2]
[405822897,1771339911573,5000.01,6.83e-05,2]
[405822898,1771339911599,5000.01,6.83e-05,2]
[405822899,1771339911625,5000.01,6.83e-05,2]
[405822900,1771339911651,5000.01,6.83e-05,2]
[405822901,1771339911676,5000.01,6.83e-05,2]
[405822902,1771339911701,5000.01,6.83e-05,2]
[405822903,1771339911725,5000.01,6.83e-05,2]
[405822904,1771340002186,150.34,6.83e-05,2]
[405822905,1771340003204,277.81134382,6.829e-05,2]
[405822906,1771340003269,266.07087153,6.829e-05,2]
[405822907,1771340005718,500.0,6.829e-05,2]
[405822908,1771340005771,500.0,6.829e-05,2]
[405822909,1771340005822,500.0,6.829e-05,2]
[405822910,1771340005877,538.75630238,6.829e-05,2]
[405822911,1771340009150,656.0,6.829e-05,2]
[405822912,1771340009459,1121.43775548,6.829e-05,2]
[405822913,1771340041454,300.0,6.829e-05,2]
[405822914,1771340042973,150.0,6.829e-05,2]
[405822915,1771340063197,39.59372679,6e-05,2]
[405822916,1771340063222,996.97427321,6e-05,2]
[405822917,1771340101513,1200.0,6.829e-05,2]
[405822918,1771340101554,300.0,6.829e-05,2]
[405822919,1771340105322,206.0,6e-05,3]
[405822920,1771340161411,300.0,6.829e-05,2]
[405822921,1771340170230,272.24,6.8e-05,2]
[405822922,1771340221726,300.0,6.829e-05,2]
[405822923,1771340223079,150.0,6.829e-05,2]
[405822924,1771340225830,194.46794068,6.829e-05,2]
[405822925,1771340229515,1286.32778611,6.73e-05,2]
[405822926,1771340229542,5000.01,6.73e-05,2]
[405822927,1771340229567,5000.01,6.73e-05,2]
[405822928,1771340229592,5000.01,6.73e-05,2]
[405822929,1771340229621,5000.01,6.73e-05,2]
[405822930,1771340229647,5000.01,6.73e-05,2]
[405822931,1771340229672,5000.01,6.73e-05,2]
[405822932,1771340229697,5000.01,6.73e-05,2]
[405822933,1771340229722,5000.01,6.73e-05,2]
[405822934,1771340229750,10000.01,6.73e-05,2]
[405822935,1771340229777,5000.01,6.73e-05,2]
[405822936,1771340282184,300.0,6.729e-05,2]
[405822938,1771340346912,186.24961007,6.729e-05,2]
[405822939,1771340348684,226.52847804,6.729e-05,2]
[405822940,1771340401518,300.0,6.729e-05,2]
[405822941,1771340403262,150.0,6.729e-05,2]
[405822942,1771340411907,196.0,6.729e-05,3]
[405822954,1771340491146,151.0,6.727e-05,2]
[405822955,1771340491502,151.0,6.727e-05,2]
[405822956,1771340492058,151.0,6.727e-05,2]
[405822957,1771340493110,3384.23191189,6.595e-05,2]
[405822958,1771340493135,2377.60008811,6.595e-05,2]
[405822959,1771340493179,588.602,6.595e-05,2]
[405822960,1771340529987,1000.0,6.729e-05,2]
[405822961,1771340549519,10000.01,6.63e-05,2]
[405822962,1771340549546,10000.01,6.63e-05,2]
[405822963,1771340549572,10000.01,6.63e-05,2]
[405822964,1771340549598,5000.01,6.63e-05,2]
[405822965,1771340549627,10000.01,6.63e-05,2]
[405822966,1771340549653,5000.01,6.63e-05,2]
[405822967,1771340549682,10000.01,6.63e-05,2]
[405822968,1771340549709,5000.01,6.63e-05,2]
[405822969,1771340549734,5000.01,6.63e-05,2]
[405822970,1771340549761,10000.01,6.63e-05,2]
[405822971,1771340549787,5000.01,6.63e-05,2]
[405822972,1771340549814,10000.01,6.63e-05,2]
[405822973,1771340549842,10000.01,6.63e-05,2]
[405822974,1771340549869,5000.01,6.63e-05,2]
[405822975,1771340549898,5000.01,6.63e-05,2]
[405822976,1771340549925,10000.01,6.63e-05,2]
[405822977,1771340549950,5000.01,6.63e-05,2]
[405822978,1771340549975,5000.01,6.63e-05,2]
[405822979,1771340581586,300.0,6.629e-05,2]
[405822980,1771340583425,150.0,6.629e-05,2]
[405822983,1771340702130,1200.0,6.629e-05,2]
[405822985,1771340712977,186.0,6.629e-05,3]
[405822986,1771340724692,150.0,7.376e-05,12]
[405822987,1771340725610,150.0,7.376e-05,12]
[405822988,1771340726548,274.0,7.376e-05,12]
[405822991,1771340762274,300.0,6.629e-05,2]
[405822992,1771340763040,150.0,6.629e-05,2]
[405822993,1771340802954,500.0,6.629e-05,2]
[405822994,1771340803008,500.0,6.629e-05,2]
[405822995,1771340803062,500.0,6.629e-05,2]
[405823006,1771340851829,6400.01,6.53e-05,2]
[405823007,1771340851858,10000.01,6.53e-05,2]
[405823008,1771340851885,5000.01,6.53e-05,2]
[405823009,1771340851911,5000.01,6.53e-05,2]
[405823010,1771340851937,5000.01,6.53e-05,2]
[405823011,1771340851963,5000.01,6.53e-05,2]
[405823012,1771340851988,5000.01,6.53e-05,2]
[405823013,1771340852012,5000.01,6.53e-05,2]
[405823014,1771340852036,5000.01,6.53e-05,2]
[405823015,1771340852060,5000.01,6.53e-05,2]
[405823016,1771340852085,10000.01,6.53e-05,2]
[405823017,1771340852114,10000.01,6.53e-05,2]
[405823018,1771340852141,10000.01,6.53e-05,2]
[405823019,1771340852167,10000.01,6.53e-05,2]
[405823020,1771340852194,10000.01,6.53e-05,2]
[405823021,1771340852219,10000.01,6.53e-05,2]
[405823022,1771340852244,10000.01,6.53e-05,2]